fUST/lending_fUST_20250720
["ID","MTS","AMOUNT","RATE_DAILY","PERIOD"]
[373358214,1752966660851,-460.0,0.00020353,2]
[373358215,1752966660860,-460.0,0.00020353,2]
[373358216,1752966660868,-460.0,0.00020353,2]
[373358217,1752966660877,-1128.75,0.00020353,2]
[373358218,1752966660886,-460.0,0.00020353,2]
[373358219,1752966660895,-616.03,0.00020353,2]
[373358220,1752966660904,-460.0,0.00020353,2]
[373358221,1752966660913,-460.0,0.00020353,2]
[373358222,1752966660922,-479.5,0.00020353,2]
[373358223,1752966660931,-460.0,0.00020353,2]
[373358224,1752966660940,-460.0,0.00020353,2]
[373358225,1752966660949,-460.0,0.00020353,2]
[373358226,1752966660959,-460.0,0.00020353,2]
[373358227,1752966660968,-460.0,0.00020353,2]
[373358228,1752966660977,-460.0,0.00020354,2]
[373358229,1752966660986,-151.0,0.00020354,2]
[373358230,1752966660995,-151.0,0.00020354,2]
[373358231,1752966661005,-460.0,0.00020354,2]
[373358232,1752966661014,-460.0,0.00020354,2]
[373358233,1752966661023,-482.38,0.00020354,2]
[373358234,1752966661033,-512.433133,0.00020354,2]
[373358235,1752966661042,-512.433133,0.00020354,2]
[373358236,1752966661051,-460.0,0.00020354,2]
[373358237,1752966661060,-5129.89,0.00020354,2]
[373358238,1752966661069,-782.61,0.00020354,2]
[373358239,1752966661078,-1414.05,0.00020354,2]
[373358240,1752966661088,-851.29,0.00020355,2]
[373358241,1752966661098,-1034.06014584,0.00020364,2]
[373358242,1752966661108,-2500.0,0.00020364,2]
[373358243,1752966661117,-2500.0,0.00020364,2]
[373358244,1752966661128,-209.95428927,0.00020373,2]
[373358245,1752966661138,-500.0,0.00020373,2]
[373358246,1752966661147,-161.02394248,0.00020373,2]
[373358247,1752966661156,-369.01515724,0.00020397,2]
[373358248,1752966661166,-1196.08,0.00020435,2]
[373358249,1752966661176,-517.58,0.00020435,2]
[373358250,1752966661185,-500.0,0.00020458,2]
[373358251,1752966661278,-455.0,0.00020458,2]
[373358252,1752966661288,-1500.0,0.00020468,2]
[373358253,1752966661299,-1500.0,0.00020468,2]
[373358254,1752966661308,-901.42791799,0.00020468,2]
[373358255,1752966661318,-1500.0,0.00020468,2]
[373358256,1752966661327,-202.393886,0.00020481,2]
[373358257,1752966661337,-202.393886,0.00020481,2]
[373358258,1752966661347,-1000.0,0.00020481,2]
[373358259,1752966661357,-700.0,0.00020516,2]
[373358260,1752966661366,-521.09,0.00020528,2]
[373358261,1752966661375,-520.73,0.00020528,2]
[373358262,1752966661385,-498.33,0.00020528,2]
[373358263,1752966661394,-479.16,0.00020528,2]
[373358264,1752966661404,-1753.36,0.00020528,2]
[373358265,1752966661413,-360.0,0.00020531,2]
[373358266,1752966661422,-5697.5354751,0.00020555,3]
[373358267,1752966661432,-160.0,0.0002056,3]
[373358268,1752966661441,-12612.80205064,0.0002056,3]
[373358269,1752966661451,-785.049372,0.0002058,8]
[373358270,1752966661460,-151.0,0.0002059,2]
[373358271,1752966661470,-160.0,0.000206,3]
[373358272,1752966661479,-476.34170116,0.000206,3]
[373358273,1752966661489,-214.52603969,0.000206,3]
[373358274,1752966661498,-1453.96,0.00020625,2]
[373358275,1752966661507,-914.5,0.00020625,2]
[373358276,1752966661517,-479.16,0.00020625,2]
[373358277,1752966661527,-2820.31,0.00020625,2]
[373358278,1752966661536,-484.79,0.00020625,2]
[373358279,1752966661545,-629.72,0.00020625,2]
[373358280,1752966661555,-603.47,0.00020625,2]
[373358281,1752966661565,-4983.9,0.00020625,2]
[373358282,1752966661578,-460.0,0.00020625,2]
[373358283,1752966661599,-559.77,0.00020625,2]
[373358284,1752966661610,-460.0,0.00020626,2]
[373358285,1752966661619,-460.0,0.00020626,2]
[373358286,1752966661630,-460.0,0.00020626,2]
[373358287,1752966661640,-460.0,0.00020626,2]
[373358288,1752966661650,-460.0,0.00020626,2]
[373358289,1752966661659,-460.0,0.00020626,2]
[373358290,1752966661668,-403.86584508,0.00020626,2]
[373358291,1752966661677,-460.0,0.00020626,2]
[373358292,1752966661686,-460.0,0.00020626,2]
[373358293,1752966661696,-460.0,0.00020626,2]
[373358294,1752966661704,-460.0,0.00020626,2]
[373358295,1752966661713,-460.0,0.00020626,2]
[373358296,1752966661722,-460.0,0.00020626,2]
[373358297,1752966661732,-520.46,0.00020626,2]
[373358298,1752966661741,-623.64,0.00020626,2]
[373358299,1752966661750,-607.55,0.00020626,2]
[373358300,1752966661759,-498.33,0.00020626,2]
[373358301,1752966661770,-460.0,0.00020626,2]
[373358302,1752966661781,-675.57,0.00020626,2]
[373358303,1752966661792,-464.35,0.00020626,2]
[373358304,1752966661802,-719.7,0.00020626,2]
[373358305,1752966661812,-460.0,0.00020626,2]
[373358306,1752966661823,-696.69,0.00020626,2]
[373358307,1752966661834,-566.05362168,0.00020626,2]
[373358308,1752966661845,-895.61,0.00020626,2]
[373358309,1752966661855,-1241.46,0.00020626,2]
[373358310,1752966661864,-2718.71,0.00020626,2]
[373358311,1752966661873,-524.76,0.00020626,2]
[373358312,1752966661882,-1798.49,0.00020626,2]
[373358313,1752966661892,-460.0,0.00020626,2]
[373358314,1752966661903,-498.33,0.00020626,2]
[373358315,1752966661914,-573.13,0.00020626,2]
[373358316,1752966661924,-761.17,0.00020626,2]
[373358317,1752966661937,-1022.89,0.00020626,2]
[373358318,1752966661946,-460.0,0.00020626,2]
[373358319,1752966661956,-460.0,0.00020626,2]
[373358320,1752966661965,-498.33,0.00020626,2]
[373358321,1752966661975,-460.0,0.00020626,2]
[373358322,1752966661984,-460.0,0.00020626,2]
[373358323,1752966661994,-460.0,0.00020626,2]
[373358324,1752966662003,-662.4,0.00020626,2]
[373358325,1752966662013,-460.0,0.00020626,2]
[373358326,1752966662022,-460.0,0.00020626,2]
[373358327,1752966662032,-460.0,0.00020626,2]
[373358328,1752966662041,-753.09,0.00020626,2]
[373358329,1752966662051,-460.0,0.00020627,2]
[373358330,1752966662060,-460.0,0.00020627,2]
[373358331,1752966662069,-460.0,0.00020627,2]
[373358332,1752966662078,-601.49,0.00020627,2]
[373358333,1752966662087,-517.5,0.00020627,2]
[373358334,1752966662097,-460.0,0.00020627,2]
[373358335,1752966662107,-460.0,0.00020627,2]
[373358336,1752966662116,-460.0,0.00020627,2]
[373358337,1752966662125,-385.53898709,0.00020627,2]
[373358338,1752966662135,-705.1,0.00020627,2]
[373358339,1752966662144,-460.0,0.00020627,2]
[373358340,1752966662153,-460.0,0.00020627,2]
[373358341,1752966662163,-460.0,0.00020627,2]
[373358342,1752966662173,-460.0,0.00020627,2]
[373358343,1752966662182,-460.0,0.00020627,2]
[373358344,1752966662191,-1128.75,0.00020627,2]
[373358345,1752966662200,-460.0,0.00020627,2]
[373358346,1752966662210,-616.03,0.00020627,2]
[373358347,1752966662219,-460.0,0.00020627,2]
[373358348,1752966662229,-460.0,0.00020627,2]
[373358349,1752966662238,-479.5,0.00020627,2]
[373358350,1752966662248,-460.0,0.00020627,2]
[373358351,1752966662257,-460.0,0.00020627,2]
[373358352,1752966662268,-460.0,0.00020627,2]
[373358353,1752966662277,-460.0,0.00020627,2]
[373358354,1752966662287,-460.0,0.00020627,2]
[373358355,1752966662296,-460.0,0.00020628,2]
[373358356,1752966662306,-460.0,0.00020628,2]
[373358357,1752966662315,-314.24537845,0.00020628,2]
[373358358,1752966662325,-482.38,0.00020628,2]
[373358359,1752966662335,-460.0,0.00020628,2]
[373358360,1752966662344,-5129.89,0.00020628,2]
[373358361,1752966662354,-782.61,0.00020628,2]
[373358362,1752966662363,-1414.05,0.00020628,2]
[373358363,1752966662374,-851.29,0.00020629,2]
[373358364,1752966662384,-151.0,0.000207,3]
[373358365,1752966662393,-1196.08,0.00020709,2]
[373358366,1752966662403,-517.58,0.00020709,2]
[373358367,1752966662412,-500.0,0.00020732,2]
[373358368,1752966662422,-455.0,0.00020732,2]
[373358369,1752966662432,-5697.5354751,0.00020762,3]
[373358370,1752966662442,-151.47111,0.00020771,2]
[373358371,1752966662451,-151.0,0.00020771,2]
[373358372,1752966662460,-151.0,0.00020771,2]
[373358373,1752966662469,-151.0,0.00020771,2]
[373358374,1752966662478,-520.73,0.00020802,2]
[373358375,1752966662488,-498.33,0.00020802,2]
[373358376,1752966662498,-479.16,0.00020802,2]
[373358377,1752966662507,-405.20144688,0.00020802,2]
[373358378,1752966662663,-1348.15855312,0.00020802,2]
[373358379,1752966662672,-1449.857,0.00020805,2]
[373358380,1752966662683,-178.503,0.00020805,2]
[373358381,1752966662693,-151.0,0.00020831,2]
[373358382,1752966662702,-151.0,0.00020831,2]
[373358383,1752966662712,-6296.30320216,0.00020865,2]
[373358384,1752966662807,-18703.69679784,0.00020865,2]
[373358385,1752966662817,-202.393886,0.0002088,2]
[373358386,1752966662827,-202.393886,0.0002088,2]
[373358387,1752966662836,-2123.75250811,0.00020881,2]
[373358388,1752966662846,-151.0,0.00020881,2]
[373358389,1752966662856,-151.0,0.00020881,2]
[373358390,1752966662866,-151.0,0.00020881,2]
[373358391,1752966662875,-1453.96,0.00020899,2]
[373358392,1752966662884,-914.5,0.00020899,2]
[373358393,1752966662894,-479.16,0.00020899,2]
[373358394,1752966662903,-2820.31,0.00020899,2]
[373358395,1752966662913,-484.79,0.00020899,2]
[373358396,1752966662922,-629.72,0.00020899,2]
[373358397,1752966662931,-603.47,0.00020899,2]
[373358398,1752966662939,-4983.9,0.00020899,2]
[373358399,1752966662949,-460.0,0.00020899,2]
[373358400,1752966662958,-559.77,0.00020899,2]
[373358401,1752966662967,-460.0,0.000209,2]
[373358402,1752966662977,-460.0,0.000209,2]
[373358403,1752966662987,-460.0,0.000209,2]
[373358404,1752966662996,-460.0,0.000209,2]
[373358405,1752966663005,-460.0,0.000209,2]
[373358406,1752966663015,-460.0,0.000209,2]
[373358407,1752966663024,-460.0,0.000209,2]
[373358408,1752966663034,-460.0,0.000209,2]
[373358409,1752966663043,-460.0,0.000209,2]
[373358410,1752966663052,-460.0,0.000209,2]
[373358411,1752966663061,-460.0,0.000209,2]
[373358412,1752966663071,-520.46,0.000209,2]
[373358413,1752966663080,-623.64,0.000209,2]
[373358414,1752966663090,-7820.94930591,0.000209,2]
[373358415,1752966663100,-607.55,0.000209,2]
[373358416,1752966663110,-498.33,0.000209,2]
[373358417,1752966663119,-460.0,0.000209,2]
[373358418,1752966663128,-675.57,0.000209,2]
[373358419,1752966663138,-117.63083542,0.000209,2]
[373358420,1752966663150,-346.71916458,0.000209,2]
[373358421,1752966663159,-719.7,0.000209,2]
[373358422,1752966663169,-460.0,0.000209,2]
[373358423,1752966663178,-696.69,0.000209,2]
[373358424,1752966663188,-895.61,0.000209,2]
[373358425,1752966663198,-1241.46,0.000209,2]
[373358426,1752966663207,-253.35368235,0.000209,2]
[373358427,1752966663219,-2140.0,0.000209,2]
[373358428,1752966663230,-325.35631765,0.000209,2]
[373358429,1752966663240,-524.76,0.000209,2]
[373358430,1752966663250,-391.05705865,0.000209,2]
[373358431,1752966663261,-377.33167231,0.000209,2]
[373358432,1752966663273,-1030.10126904,0.000209,2]
[373358433,1752966663283,-446.75301986,0.000209,2]
[373358434,1752966663300,-460.0,0.00018982,2]
[373358435,1752966663309,-13.24698014,0.000209,2]
[373358436,1752966663319,-498.33,0.000209,2]
[373358437,1752966663328,-573.13,0.000209,2]
[373358438,1752966663337,-761.17,0.000209,2]
[373358439,1752966663349,-1022.89,0.000209,2]
[373358440,1752966663358,-460.0,0.000209,2]
[373358441,1752966663368,-417.04997114,0.000209,2]
[373358442,1752966663378,-498.33,0.000209,2]
[373358443,1752966663387,-460.0,0.000209,2]
[373358444,1752966663397,-460.0,0.000209,2]
[373358445,1752966663406,-460.0,0.000209,2]
[373358446,1752966663416,-662.4,0.000209,2]
[373358447,1752966663426,-460.0,0.000209,2]
[373358448,1752966663435,-460.0,0.000209,2]
[373358449,1752966663444,-460.0,0.000209,2]
[373358450,1752966663454,-753.09,0.000209,2]
[373358451,1752966663463,-460.0,0.00020901,2]
[373358452,1752966663472,-460.0,0.00020901,2]
[373358453,1752966663482,-151.0,0.00020901,2]
[373358454,1752966663491,-151.0,0.00020901,2]
[373358455,1752966663501,-460.0,0.00020901,2]
[373358456,1752966663511,-601.49,0.00020901,2]
[373358457,1752966663520,-517.5,0.00020901,2]
[373358458,1752966663530,-460.0,0.00020901,2]
[373358459,1752966663539,-428.51895986,0.00020901,2]
[373358460,1752966663548,-460.0,0.00020901,2]
[373358461,1752966663558,-705.1,0.00020901,2]
[373358462,1752966663567,-460.0,0.00020901,2]
[373358463,1752966663578,-512.433133,0.00020901,2]
[373358464,1752966663589,-512.433133,0.00020901,2]
[373358465,1752966663599,-460.0,0.00020901,2]
[373358466,1752966663608,-460.0,0.00020901,2]
[373358467,1752966663619,-460.0,0.00020901,2]
[373358468,1752966663629,-460.0,0.00020901,2]
[373358469,1752966663638,-1128.75,0.00020901,2]
[373358470,1752966663648,-272.38971998,0.00020901,2]
[373358471,1752966663659,-616.03,0.00020901,2]
[373358472,1752966663669,-460.0,0.00020901,2]
[373358473,1752966663679,-479.5,0.00020901,2]
[373358474,1752966663688,-460.0,0.00020901,2]
[373358475,1752966663697,-460.0,0.00020901,2]
[373358476,1752966663707,-460.0,0.00020901,2]
[373358477,1752966663717,-460.0,0.00020901,2]
[373358478,1752966663726,-460.0,0.00020901,2]
[373358479,1752966663735,-460.0,0.00020902,2]
[373358480,1752966663744,-460.0,0.00020902,2]
[373358481,1752966663754,-482.38,0.00020902,2]
[373358482,1752966663763,-460.0,0.00020902,2]
[373358483,1752966663772,-5129.89,0.00020902,2]
[373358484,1752966663782,-782.61,0.00020902,2]
[373358485,1752966663791,-1414.05,0.00020902,2]
[373358486,1752966663801,-851.29,0.00020903,2]
[373358487,1752966663811,-1500.0,0.00020912,2]
[373358488,1752966663821,-424.49392517,0.00020912,2]
[373358489,1752966663830,-151.0,0.00020935,2]
[373358490,1752966663840,-5697.5354751,0.00020969,4]
[373358491,1752966663850,-1196.08,0.00020983,2]
[373358492,1752966663859,-517.58,0.00020983,2]
[373358493,1752966663869,-250.0,0.00020997,2]
[373358494,1752966663879,-1000.0,0.00020999,14]
[373358495,1752966663888,-1000.0,0.00020999,4]
[373358496,1752966663898,-42997.76505564,0.00021,4]
[373358497,1752966663907,-1396.92,0.00021,2]
[373358498,1752966663916,-3000.0,0.00021,2]
[373358499,1752966663925,-151.0,0.00021,2]
[373358500,1752966663935,-371.89893966,0.00021,2]
[373358501,1752966663944,-152.474155,0.00021,4]
[373358502,1752966663954,-155.0,0.00021,2]
[373358503,1752966663963,-500.0,0.00021006,2]
[373358504,1752966663973,-455.0,0.00021006,2]
[373358505,1752966663982,-151.0,0.00021006,2]
[373358506,1752966663991,-151.0,0.00021009,2]
[373358507,1752966664000,-151.0,0.00021009,2]
[373358508,1752966664009,-3000.0,0.0002101,2]
[373358509,1752966664018,-150.0,0.00021012,2]
[373358510,1752966664027,-224.048,0.00021012,2]
[373358511,1752966664037,-150.135,0.00021012,2]
[373358512,1752966664046,-150.0,0.00021012,2]
[373358513,1752966664056,-696.898,0.00021012,2]
[373358514,1752966664065,-2156.0,0.00021012,2]
[373358515,1752966664075,-968.0,0.00021012,2]
[373358516,1752966664084,-407.0,0.00021012,2]
[373358517,1752966664094,-416.784,0.00021012,2]
[373358518,1752966664104,-2000.0,0.00021016,2]
[373358519,1752966664113,-1010.83520305,0.00021016,2]
[373358520,1752966664123,-2000.0,0.00021016,2]
[373358521,1752966664132,-3000.0,0.0002102,2]
[373358522,1752966664142,-1500.0,0.00021029,2]
[373358523,1752966664151,-151.0,0.0002103,2]
[373358524,1752966664161,-3000.0,0.0002103,2]
[373358525,1752966664170,-151.0,0.0002103,2]
[373358526,1752966664179,-151.0,0.0002103,2]
[373358527,1752966664189,-202.393886,0.0002103,2]
[373358528,1752966664198,-202.393886,0.0002103,2]
[373358529,1752966664207,-3000.0,0.0002104,2]
[373358530,1752966664216,-3000.0,0.0002105,2]
[373358531,1752966664225,-151.0,0.0002105,2]
[373358532,1752966664311,-270.067194,0.0002106,2]
[373358533,1752966664321,-151.0,0.0002106,2]
[373358534,1752966664331,-3000.0,0.0002106,2]
[373358535,1752966664341,-3000.0,0.0002107,2]
[373358536,1752966664351,-520.73,0.00021076,2]
[373358537,1752966664361,-498.33,0.00021076,2]
[373358538,1752966664370,-479.16,0.00021076,2]
[373358539,1752966664379,-1753.36,0.00021076,2]
[373358540,1752966664389,-460.0,0.00021078,2]
[373358541,1752966664399,-3000.0,0.0002108,2]
[373358542,1752966664408,-3000.0,0.0002109,2]
[373358543,1752966664418,-151.0,0.0002109,2]
[373358544,1752966664428,-151.0,0.0002109,2]
[373358545,1752966664437,-151.0,0.0002109,2]
[373358546,1752966664446,-512.433133,0.0002109,2]
[373358547,1752966664456,-512.433133,0.0002109,2]
[373358548,1752966664466,-3000.0,0.000211,2]
[373358549,1752966664475,-3000.0,0.0002111,2]
[373358550,1752966664485,-151.0,0.0002112,2]
[373358551,1752966664494,-151.0,0.0002112,2]
[373358552,1752966664503,-3000.0,0.0002112,2]
[373358553,1752966664513,-3000.0,0.0002113,2]
[373358554,1752966664523,-215.0738,0.00021138,2]
[373358555,1752966664533,-152.474155,0.0002115,2]
[373358556,1752966664543,-1453.96,0.00021173,2]
[373358557,1752966664552,-914.5,0.00021173,2]
[373358558,1752966664562,-479.16,0.00021173,2]
[373358559,1752966664571,-2820.31,0.00021173,2]
[373358560,1752966664585,-484.79,0.00021173,2]
[373358561,1752966664595,-629.72,0.00021173,2]
[373358562,1752966664605,-603.47,0.00021173,2]
[373358563,1752966664614,-4983.9,0.00021173,2]
[373358564,1752966664625,-460.0,0.00021173,2]
[373358565,1752966664634,-559.77,0.00021173,2]
[373358566,1752966664643,-460.0,0.00021174,2]
[373358567,1752966664657,-460.0,0.00021174,2]
[373358568,1752966664674,-460.0,0.00021174,2]
[373358569,1752966664684,-460.0,0.00021174,2]
[373358570,1752966664693,-460.0,0.00021174,2]
[373358571,1752966664703,-460.0,0.00021174,2]
[373358572,1752966664712,-460.0,0.00021174,2]
[373358573,1752966664721,-460.0,0.00021174,2]
[373358574,1752966664731,-370.41350625,0.00021174,2]
[373358575,1752966664743,-460.0,0.00021174,2]
[373358576,1752966664752,-460.0,0.00021174,2]
[373358577,1752966664762,-520.46,0.00021174,2]
[373358578,1752966664773,-623.64,0.00021174,2]
[373358579,1752966664783,-607.55,0.00021174,2]
[373358580,1752966664794,-498.33,0.00021174,2]
[373358581,1752966664803,-460.0,0.00021174,2]
[373358582,1752966664813,-675.57,0.00021174,2]
[373358583,1752966664822,-464.35,0.00021174,2]
[373358584,1752966664832,-719.7,0.00021174,2]
[373358585,1752966664842,-460.0,0.00021174,2]
[373358586,1752966664852,-696.69,0.00021174,2]
[373358587,1752966664862,-895.61,0.00021174,2]
[373358588,1752966664872,-1241.46,0.00021174,2]
[373358589,1752966664881,-2718.71,0.00021174,2]
[373358590,1752966664892,-524.76,0.00021174,2]
[373358591,1752966664902,-1798.49,0.00021174,2]
[373358592,1752966664912,-357.29912977,0.00021174,2]
[373358593,1752966664921,-498.33,0.00021174,2]
[373358594,1752966664931,-573.13,0.00021174,2]
[373358595,1752966664941,-761.17,0.00021174,2]
[373358596,1752966664950,-1022.89,0.00021174,2]
[373358597,1752966664960,-498.33,0.00021174,2]
[373358598,1752966664970,-460.0,0.00021174,2]
[373358599,1752966664980,-460.0,0.00021174,2]
[373358600,1752966664991,-460.0,0.00021174,2]
[373358601,1752966665001,-662.4,0.00021174,2]
[373358602,1752966665012,-460.0,0.00021174,2]
[373358603,1752966665022,-460.0,0.00021174,2]
[373358604,1752966665032,-460.0,0.00021174,2]
[373358605,1752966665043,-753.09,0.00021174,2]
[373358606,1752966665054,-545.28396154,0.00021175,2]
[373358607,1752966665064,-460.0,0.00021175,2]
[373358608,1752966665074,-460.0,0.00021175,2]
[373358609,1752966665084,-601.49,0.00021175,2]
[373358610,1752966665094,-517.5,0.00021175,2]
[373358611,1752966665103,-460.0,0.00021175,2]
[373358612,1752966665113,-460.0,0.00021175,2]
[373358613,1752966665123,-705.1,0.00021175,2]
[373358614,1752966665133,-460.0,0.00021175,2]
[373358615,1752966665142,-460.0,0.00021175,2]
[373358616,1752966665151,-460.0,0.00021175,2]
[373358617,1752966665161,-460.0,0.00021175,2]
[373358618,1752966665171,-460.0,0.00021175,2]
[373358619,1752966665180,-1128.75,0.00021175,2]
[373358620,1752966665189,-616.03,0.00021175,2]
[373358621,1752966665198,-460.0,0.00021175,2]
[373358622,1752966665208,-479.5,0.00021175,2]
[373358623,1752966665217,-460.0,0.00021175,2]
[373358624,1752966665226,-460.0,0.00021175,2]
[373358625,1752966665235,-460.0,0.00021175,2]
[373358626,1752966665244,-395.22,0.00021175,2]
[373358627,1752966665254,-460.0,0.00021175,2]
[373358628,1752966665263,-5697.5354751,0.00021176,4]
[373358629,1752966665272,-460.0,0.00021176,2]
[373358630,1752966665281,-460.0,0.00021176,2]
[373358631,1752966665290,-482.38,0.00021176,2]
[373358632,1752966665300,-460.0,0.00021176,2]
[373358633,1752966665309,-5129.89,0.00021176,2]
[373358634,1752966665324,-782.61,0.00021176,2]
[373358635,1752966665333,-1414.05,0.00021176,2]
[373358636,1752966665343,-851.29,0.00021177,2]
[373358637,1752966665355,-587.0,0.00021185,2]
[373358638,1752966665365,-501.0,0.00021212,2]
[373358639,1752966665376,-159.1932489,0.00021233,2]
[373358640,1752966665386,-153.0,0.00021233,2]
[373358641,1752966665399,-153.0,0.00021233,2]
[373358642,1752966665409,-153.0,0.00021233,2]
[373358643,1752966665418,-1196.08,0.00021257,2]
[373358644,1752966665428,-517.58,0.00021257,2]
[373358645,1752966665439,-151.0,0.00021265,2]
[373358646,1752966665449,-151.0,0.00021278,2]
[373358647,1752966665458,-500.0,0.0002128,2]
[373358648,1752966665469,-455.0,0.0002128,2]
[373358649,1752966665479,-520.73,0.0002135,2]
[373358650,1752966665489,-498.33,0.0002135,2]
[373358651,1752966665499,-479.16,0.0002135,2]
[373358652,1752966665508,-1753.36,0.0002135,2]
[373358653,1752966665518,-5697.5354751,0.00021383,5]
[373358654,1752966665527,-7820.94930591,0.00021386,2]
[373358655,1752966665536,-151.0,0.00021428,2]
[373358656,1752966665547,-151.0,0.00021428,2]
[373358657,1752966665558,-1453.96,0.00021447,2]
[373358658,1752966665569,-914.5,0.00021447,2]
[373358659,1752966665583,-479.16,0.00021447,2]
[373358660,1752966665593,-2820.31,0.00021447,2]
[373358661,1752966665604,-484.79,0.00021447,2]
[373358662,1752966665613,-629.72,0.00021447,2]
[373358663,1752966665623,-603.47,0.00021447,2]
[373358664,1752966665632,-4983.9,0.00021447,2]
[373358665,1752966665641,-460.0,0.00021447,2]
[373358666,1752966665651,-559.77,0.00021447,2]
[373358667,1752966665662,-460.0,0.00021448,2]
[373358668,1752966665671,-460.0,0.00021448,2]
[373358669,1752966665681,-460.0,0.00021448,2]
[373358670,1752966665691,-460.0,0.00021448,2]
[373358671,1752966665776,-460.0,0.00021448,2]
[373358672,1752966665788,-460.0,0.00021448,2]
[373358673,1752966665798,-460.0,0.00021448,2]
[373358674,1752966665810,-460.0,0.00021448,2]
[373358675,1752966665820,-460.0,0.00021448,2]
[373358676,1752966665831,-520.46,0.00021448,2]
[373358677,1752966665841,-623.64,0.00021448,2]
[373358678,1752966665851,-607.55,0.00021448,2]
[373358679,1752966665860,-498.33,0.00021448,2]
[373358680,1752966665869,-348.35026998,0.00021448,2]
[373358681,1752966665879,-675.57,0.00021448,2]
[373358682,1752966665890,-464.35,0.00021448,2]
[373358683,1752966665901,-719.7,0.00021448,2]
[373358684,1752966665912,-696.69,0.00021448,2]
[373358685,1752966665922,-895.61,0.00021448,2]
[373358686,1752966665932,-1241.46,0.00021448,2]
[373358687,1752966665942,-2718.71,0.00021448,2]
[373358688,1752966665952,-524.76,0.00021448,2]
[373358689,1752966665962,-1798.49,0.00021448,2]
[373358690,1752966665972,-498.33,0.00021448,2]
[373358691,1752966665981,-573.13,0.00021448,2]
[373358692,1752966665991,-761.17,0.00021448,2]
[373358693,1752966666000,-1022.89,0.00021448,2]
[373358694,1752966666010,-498.33,0.00021448,2]
[373358695,1752966666020,-460.0,0.00021448,2]
[373358696,1752966666031,-460.0,0.00021448,2]
[373358697,1752966666041,-460.0,0.00021448,2]
[373358698,1752966666050,-662.4,0.00021448,2]
[373358699,1752966666060,-460.0,0.00021448,2]
[373358700,1752966666069,-460.0,0.00021448,2]
[373358701,1752966666079,-460.0,0.00021448,2]
[373358702,1752966666088,-753.09,0.00021448,2]
[373358703,1752966666099,-460.0,0.00021449,2]
[373358704,1752966666110,-601.49,0.00021449,2]
[373358705,1752966666121,-517.5,0.00021449,2]
[373358706,1752966666131,-460.0,0.00021449,2]
[373358707,1752966666140,-460.0,0.00021449,2]
[373358708,1752966666149,-705.1,0.00021449,2]
[373358709,1752966666159,-460.0,0.00021449,2]
[373358710,1752966666168,-460.0,0.00021449,2]
[373358711,1752966666178,-460.0,0.00021449,2]
[373358712,1752966666187,-460.0,0.00021449,2]
[373358713,1752966666196,-1128.75,0.00021449,2]